fUSD/lending_fUSD_20250217
["ID","MTS","AMOUNT","RATE_DAILY","PERIOD"]
[353352292,1739790646721,-616.64,0.00013698,2]
[353352293,1739790646731,-500.0,0.00013698,2]
[353352294,1739790646740,-997.66,0.00013698,2]
[353352295,1739790646750,-500.0,0.00013698,2]
[353352296,1739790646760,-500.0,0.00013698,2]
[353352297,1739790646769,-500.0,0.00013698,2]
[353352298,1739790646779,-500.00832842,0.00013698,2]
[353352299,1739790646789,-202.32152136,0.00013698,2]
[353352300,1739790646798,-583.82,0.00013698,2]
[353352301,1739790646808,-737.14,0.00013698,2]
[353352302,1739790646824,-500.0,0.00013698,2]
[353352303,1739790646834,-521.74,0.00013698,2]
[353352304,1739790646844,-500.0,0.00013698,2]
[353352305,1739790646854,-500.0,0.00013698,2]
[353352306,1739790646863,-530.9,0.00013698,2]
[353352307,1739790646873,-500.0,0.00013698,2]
[353352308,1739790646883,-500.0,0.00013698,2]
[353352309,1739790646892,-500.0,0.00013698,2]
[353352310,1739790646902,-500.0,0.00013698,2]
[353352311,1739790646912,-683.75,0.00013698,2]
[353352312,1739790646921,-500.0,0.00013698,2]
[353352313,1739790646932,-500.0,0.00013698,2]
[353352314,1739790646942,-500.0,0.00013698,2]
[353352315,1739790646953,-500.0,0.00013698,2]
[353352316,1739790646963,-500.0,0.00013698,2]
[353352317,1739790646972,-500.0,0.00013698,2]
[353352318,1739790646983,-500.0,0.00013698,2]
[353352319,1739790646993,-500.0,0.00013698,2]
[353352320,1739790647002,-1191.83,0.00013698,2]
[353352321,1739790647013,-1042.14,0.00013698,2]
[353352322,1739790647023,-500.0,0.00013698,2]
[353352323,1739790647033,-500.0,0.00013698,2]
[353352324,1739790647043,-1011.96,0.00013698,2]
[353352325,1739790647053,-500.0,0.00013698,2]
[353352326,1739790647064,-500.0,0.00013698,2]
[353352327,1739790647076,-501.69146371,0.00013698,2]
[353352328,1739790647086,-500.0,0.00013698,2]
[353352329,1739790647096,-500.0,0.00013698,2]
[353352330,1739790647105,-156.04922963,0.00013698,2]
[353352331,1739790647116,-1008.74,0.00013698,2]
[353352332,1739790647125,-308.32282348,0.00013698,2]
[353352333,1739790647135,-500.0,0.00013698,2]
[353352334,1739790647146,-231.52684922,0.00013698,2]
[353352335,1739790647156,-203.15045017,0.00013698,2]
[353352336,1739790647166,-500.0,0.00013698,2]
[353352337,1739790647176,-504.89,0.00013698,2]
[353352338,1739790647187,-501.0042714,0.00013698,2]
[353352339,1739790647198,-481.44300353,0.00013698,2]
[353352340,1739790647208,-575.97,0.00013698,2]
[353352341,1739790647218,-500.0,0.00013698,2]
[353352342,1739790647229,-500.0,0.00013698,2]
[353352343,1739790647239,-500.0,0.00013698,2]
[353352344,1739790647248,-500.0,0.00013698,2]
[353352345,1739790647258,-1176.14,0.00013698,2]
[353352346,1739790647267,-1061.63,0.00013698,2]
[353352347,1739790647277,-500.0,0.00013698,2]
[353352348,1739790647286,-500.0,0.00013698,2]
[353352349,1739790647295,-500.0,0.00013698,2]
[353352350,1739790647304,-500.0,0.00013698,2]
[353352351,1739790647316,-500.0,0.00013698,2]
[353352352,1739790647338,-259.25257864,0.00013698,2]
[353352353,1739790647358,-500.0,0.00013698,2]
[353352354,1739790647379,-500.0,0.00013698,2]
[353352355,1739790647400,-786.92,0.00013698,2]
[353352356,1739790647421,-500.0,0.00013698,2]
[353352357,1739790647443,-500.0,0.00013698,2]
[353352358,1739790647465,-500.0,0.00013698,2]
[353352359,1739790647486,-500.0,0.00013698,2]
[353352360,1739790647510,-728.66,0.00013698,2]
[353352361,1739790647532,-500.0,0.00013698,2]
[353352362,1739790647555,-500.0,0.00013698,2]
[353352363,1739790647578,-500.0,0.00013698,2]
[353352364,1739790647598,-804.74,0.00013698,2]
[353352365,1739790647614,-500.0,0.00013698,2]
[353352366,1739790647623,-500.0,0.00013698,2]
[353352367,1739790647633,-500.0,0.00013698,2]
[353352368,1739790647643,-505.38617014,0.00013698,2]
[353352369,1739790647652,-500.0,0.00013698,2]
[353352370,1739790647661,-500.0,0.00013698,2]
[353352371,1739790647671,-500.0,0.00013698,2]
[353352372,1739790647681,-743.68,0.00013698,2]
[353352373,1739790647690,-500.0,0.00013698,2]
[353352374,1739790647700,-500.0,0.00013698,2]
[353352375,1739790647710,-500.0,0.00013698,2]
[353352376,1739790647719,-515.63048303,0.00013698,2]
[353352377,1739790647729,-500.0,0.00013698,2]
[353352378,1739790647742,-500.0,0.00013698,2]
[353352379,1739790647752,-500.0,0.00013698,2]
[353352380,1739790647763,-500.34112637,0.00013698,2]
[353352381,1739790647774,-500.0,0.00013698,2]
[353352382,1739790647783,-2096.67,0.00013698,2]
[353352383,1739790647793,-352.35507347,0.00013698,2]
[353352384,1739790647803,-2096.67,0.00013698,2]
[353352385,1739790647814,-500.0,0.00013698,2]
[353352386,1739790647824,-500.0,0.00013698,2]
[353352387,1739790647835,-500.0,0.00013698,2]
[353352388,1739790647847,-500.0,0.00013698,2]
[353352389,1739790647857,-500.0,0.00013698,2]
[353352390,1739790647868,-500.0,0.00013698,2]
[353352391,1739790647878,-500.0,0.00013698,2]
[353352392,1739790647888,-500.0,0.00013698,2]
[353352393,1739790647900,-500.0,0.00013698,2]
[353352394,1739790647911,-677.34,0.00013698,2]
[353352395,1739790647921,-500.0,0.00013698,2]
[353352396,1739790647931,-500.0,0.00013698,2]
[353352397,1739790647941,-500.0,0.00013698,2]
[353352398,1739790647951,-500.0,0.00013698,2]
[353352399,1739790647961,-500.0,0.00013698,2]
[353352400,1739790647970,-500.0,0.00013698,2]
[353352401,1739790647980,-500.0,0.00013698,2]
[353352402,1739790647990,-500.0,0.00013698,2]
[353352403,1739790647999,-502.28372631,0.00013698,2]
[353352404,1739790648009,-500.0,0.00013698,2]
[353352405,1739790648018,-500.0,0.00013698,2]
[353352406,1739790648028,-500.0,0.00013698,2]
[353352407,1739790648038,-500.0,0.00013698,2]
[353352408,1739790648049,-766.03,0.00013698,2]
[353352409,1739790648062,-328.61798977,0.00013698,2]
[353352410,1739790648073,-701.6,0.00013698,2]
[353352411,1739790648083,-500.0,0.00013698,2]
[353352412,1739790648094,-500.0,0.00013698,2]
[353352413,1739790648103,-500.0,0.00013698,2]
[353352414,1739790648114,-500.0,0.00013698,2]
[353352415,1739790648124,-500.0,0.00013698,2]
[353352416,1739790648136,-529.11,0.00013698,2]
[353352417,1739790648148,-500.0,0.00013698,2]
[353352418,1739790648159,-500.0,0.00013698,2]
[353352419,1739790648169,-500.44,0.00013698,2]
[353352420,1739790648179,-500.0,0.00013698,2]
[353352421,1739790648189,-500.0,0.00013698,2]
[353352422,1739790648199,-500.0,0.00013698,2]
[353352423,1739790648208,-500.0,0.00013698,2]
[353352424,1739790648218,-5000.0,0.00013698,2]
[353352425,1739790648228,-500.0,0.00013698,2]
[353352426,1739790648242,-500.0,0.00013698,2]
[353352427,1739790648251,-669.03,0.00013698,2]
[353352428,1739790648260,-500.0,0.00013698,2]
[353352429,1739790648269,-500.0,0.00013698,2]
[353352430,1739790648279,-695.46,0.00013698,2]
[353352431,1739790648288,-500.0,0.00013698,2]
[353352432,1739790648299,-500.0,0.00013698,2]
[353352433,1739790648308,-500.0,0.00013698,2]
[353352434,1739790648323,-500.0,0.00013698,2]
[353352435,1739790648332,-500.0,0.00013698,2]
[353352436,1739790648342,-702.98,0.00013698,2]
[353352437,1739790648351,-500.0,0.00013698,2]
[353352438,1739790648361,-566.69,0.00013698,2]
[353352439,1739790648370,-500.0,0.00013698,2]
[353352440,1739790648380,-500.0,0.00013698,2]
[353352441,1739790648389,-500.0,0.00013698,2]
[353352442,1739790648401,-508.60638637,0.00013698,2]
[353352443,1739790648411,-500.0,0.00013698,2]
[353352444,1739790648421,-500.0,0.00013698,2]
[353352445,1739790648431,-304.53541682,0.00013698,2]
[353352446,1739790648441,-500.0,0.00013698,2]
[353352447,1739790648451,-501.48597442,0.00013698,2]
[353352448,1739790648460,-500.0,0.00013698,2]
[353352449,1739790648470,-537.64,0.00013698,2]
[353352450,1739790648480,-500.0,0.00013698,2]
[353352451,1739790648490,-584.83,0.00013698,2]
[353352452,1739790648501,-500.0,0.00013698,2]
[353352453,1739790648510,-500.0,0.00013698,2]
[353352454,1739790648520,-1236.53,0.00013698,2]
[353352455,1739790648530,-500.0,0.00013698,2]
[353352456,1739790648540,-500.0,0.00013698,2]
[353352457,1739790648550,-500.0,0.00013698,2]
[353352458,1739790648560,-500.0,0.00013698,2]
[353352459,1739790648570,-500.0,0.00013698,2]
[353352460,1739790648580,-500.0,0.00013698,2]
[353352461,1739790648590,-500.0,0.00013698,2]
[353352462,1739790648806,-500.0,0.00013698,2]
[353352463,1739790648817,-500.0,0.00013698,2]
[353352464,1739790648828,-500.0,0.00013698,2]
[353352465,1739790648838,-501.7260095,0.00013698,2]
[353352466,1739790648848,-500.0,0.00013698,2]
[353352467,1739790648859,-500.0,0.00013698,2]
[353352468,1739790648869,-500.0,0.00013698,2]
[353352469,1739790648879,-500.0,0.00013698,2]
[353352470,1739790648890,-500.0,0.00013698,2]
[353352471,1739790648901,-157.46256573,0.00013698,2]
[353352472,1739790648932,-342.53743427,0.00013698,2]
[353352473,1739790648943,-420.70638473,0.00013698,2]
[353352474,1739790648956,-72.48257981,0.00013698,2]
[353352475,1739790648967,-660.3,0.00013698,2]
[353352476,1739790648980,-211.61698327,0.00013698,2]
[353352477,1739790648993,-288.38301673,0.00013698,2]
[353352478,1739790649004,-502.09797345,0.00013698,2]
[353352479,1739790649014,-500.0,0.00013698,2]
[353352480,1739790649025,-500.0,0.00013698,2]
[353352481,1739790649035,-400.53027172,0.00013698,2]
[353352482,1739790649045,-489.9435869,0.00013698,2]
[353352483,1739790649058,-684.6964131,0.00013698,2]
[353352484,1739790649070,-500.0,0.00013698,2]
[353352485,1739790649080,-217.8035669,0.00013698,2]
[353352486,1739790649093,-282.1964331,0.00013698,2]
[353352487,1739790649105,-500.0,0.00013698,2]
[353352488,1739790649115,-500.0,0.00013698,2]
[353352489,1739790649127,-42.9035669,0.00013698,2]
[353352490,1739790649302,-457.0964331,0.00013698,2]
[353352491,1739790649313,-1277.0,0.00013698,2]
[353352492,1739790649325,-658.99,0.00013698,2]
[353352493,1739790649336,-500.0,0.00013698,2]
[353352494,1739790649347,-506.89448119,0.00013698,2]
[353352495,1739790649360,-500.0,0.00013698,2]
[353352496,1739790649370,-500.0,0.00013698,2]
[353352497,1739790649381,-500.0,0.00013698,2]
[353352498,1739790649391,-385.38738836,0.00013698,2]
[353352499,1739790649403,-508.59214918,0.00013698,2]
[353352500,1739790649413,-32.99435238,0.00013698,2]
[353352501,1739790649427,-467.00564762,0.00013698,2]
[353352502,1739790649438,-500.0,0.00013698,2]
[353352503,1739790649449,-505.90333943,0.00013698,2]
[353352504,1739790649459,-1203.71,0.00013698,2]
[353352505,1739790649470,-500.0,0.00013698,2]
[353352506,1739790649482,-260.26621049,0.00013698,2]
[353352507,1739790649492,-500.0,0.00013698,2]
[353352508,1739790649502,-299.55252953,0.00013698,2]
[353352509,1739790649516,-200.44747047,0.00013698,2]
[353352510,1739790649527,-500.0,0.00013698,2]
[353352511,1739790649537,-1155.95,0.00013698,2]
[353352512,1739790649549,-500.0,0.00013698,2]
[353352513,1739790649560,-500.0,0.00013698,2]
[353352514,1739790649572,-283.97138179,0.00013698,2]
[353352515,1739790649584,-216.02861821,0.00013698,2]
[353352516,1739790649595,-500.0,0.00013698,2]
[353352517,1739790649606,-500.0,0.00013698,2]
[353352518,1739790649616,-501.70268993,0.00013698,2]
[353352519,1739790649627,-500.0,0.00013698,2]
[353352520,1739790649637,-500.0,0.00013698,2]
[353352521,1739790649647,-883.79,0.00013698,2]
[353352522,1739790649656,-500.0,0.00013698,2]
[353352523,1739790649666,-502.80383403,0.00013698,2]
[353352524,1739790649676,-500.0,0.00013698,2]
[353352525,1739790649685,-1089.23,0.00013698,2]
[353352526,1739790649695,-500.0,0.00013698,2]
[353352527,1739790649704,-500.0,0.00013698,2]
[353352528,1739790649713,-500.0,0.00013698,2]
[353352529,1739790649723,-1564.19,0.00013698,2]
[353352530,1739790649732,-386.83034328,0.00013698,2]
[353352531,1739790649745,-113.16965672,0.00013698,2]
[353352532,1739790649754,-686.83034328,0.00013698,2]
[353352533,1739790649820,-317.92,0.00013698,2]
[353352534,1739790649831,-39.20965672,0.00013698,2]
[353352535,1739790649841,-500.0,0.00013698,2]
[353352536,1739790649850,-360.89608907,0.00013698,2]
[353352537,1739790649862,-139.10391093,0.00013698,2]
[353352538,1739790649872,-361.9495937,0.00013698,2]
[353352539,1739790650446,-138.0504063,0.00013698,2]
[353352540,1739790650456,-500.0,0.00013698,2]
[353352541,1739790650465,-505.63642195,0.00013698,2]
[353352542,1739790650475,-329.43317175,0.00013698,2]
[353352543,1739790650496,-170.56682825,0.00013698,2]
[353352544,1739790650506,-500.0,0.00013698,2]
[353352545,1739790650515,-500.0,0.00013698,2]
[353352546,1739790650525,-500.0,0.00013698,2]
[353352547,1739790650535,-500.0,0.00013698,2]
[353352548,1739790650545,-500.0,0.00013698,2]
[353352549,1739790650556,-1412.72,0.00013698,2]
[353352550,1739790650567,-500.0,0.00013698,2]
[353352551,1739790650577,-500.0,0.00013698,2]
[353352552,1739790650586,-500.0,0.00013698,2]
[353352553,1739790650595,-500.0,0.00013698,2]
[353352554,1739790650604,-500.0,0.00013698,2]
[353352555,1739790650614,-601.93,0.00013698,2]
[353352556,1739790650623,-510.22196296,0.00013698,2]
[353352557,1739790650633,-500.0,0.00013698,2]
[353352558,1739790650643,-500.0,0.00013698,2]
[353352559,1739790650654,-500.0,0.00013698,2]
[353352560,1739790650664,-500.0,0.00013698,2]
[353352561,1739790650682,-500.0,0.00013698,2]
[353352562,1739790650693,-500.0,0.00013698,2]
[353352563,1739790650704,-503.18298192,0.00013698,2]
[353352564,1739790650714,-500.0,0.00013698,2]
[353352565,1739790650724,-500.0,0.00013698,2]
[353352566,1739790650733,-500.0,0.00013698,2]
[353352567,1739790650743,-500.0,0.00013698,2]
[353352568,1739790650753,-500.0,0.00013698,2]
[353352569,1739790650762,-754.9,0.00013698,2]
[353352570,1739790650772,-500.0,0.00013698,2]
[353352571,1739790650781,-500.0,0.00013698,2]
[353352572,1739790650791,-1319.35,0.00013698,2]
[353352573,1739790650801,-621.24,0.00013698,2]
[353352574,1739790650811,-500.0,0.00013698,2]
[353352575,1739790650821,-500.0,0.00013698,2]
[353352576,1739790650830,-500.0,0.00013698,2]
[353352577,1739790650839,-1200.0,0.00013698,2]
[353352578,1739790650849,-500.0,0.00013698,2]
[353352579,1739790650859,-4000.0,0.00013698,2]
[353352580,1739790650870,-500.0,0.00013698,2]
[353352581,1739790650880,-500.0,0.00013698,2]
[353352582,1739790650889,-500.0,0.00013698,2]
[353352583,1739790650899,-1041.74,0.00013698,2]
[353352584,1739790650909,-500.0,0.00013698,2]
[353352585,1739790650919,-500.0,0.00013698,2]
[353352586,1739790650929,-500.0,0.00013698,2]
[353352587,1739790650938,-500.0,0.00013698,2]
[353352588,1739790650949,-709.34,0.00013698,2]
[353352589,1739790650960,-500.0,0.00013698,2]
[353352590,1739790650971,-500.0,0.00013698,2]
[353352591,1739790650980,-509.61814209,0.00013698,2]
[353352592,1739790650991,-500.0,0.00013698,2]
[353352593,1739790651001,-500.0,0.00013698,2]
[353352594,1739790651011,-500.0,0.00013698,2]
[353352595,1739790651021,-500.0,0.00013698,2]
[353352596,1739790651030,-151.0,0.00013698,2]
[353352597,1739790651039,-500.0,0.00013698,2]
[353352598,1739790651049,-500.0,0.00013698,2]
[353352599,1739790651059,-6435.57,0.00013698,2]
[353352600,1739790651070,-500.0,0.00013698,2]
[353352601,1739790651080,-725.18,0.00013698,2]
[353352602,1739790651090,-151.0,0.00013698,2]
[353352603,1739790651099,-151.0,0.00013698,2]
[353352604,1739790651109,-561.82289511,0.00013698,2]
[353352605,1739790651119,-3156.82,0.00013698,2]
[353352606,1739790651129,-1273.99,0.00013698,2]
[353352607,1739790651138,-1128.33,0.00013698,2]
[353352608,1739790651148,-151.0,0.00013698,2]
[353352609,1739790651255,-500.0,0.00013698,2]
[353352610,1739790651267,-1260.07,0.00013698,2]
[353352611,1739790651276,-500.0,0.00013698,2]
[353352612,1739790651286,-651.73,0.00013698,2]
[353352613,1739790651296,-602.84,0.00013698,2]
[353352614,1739790651305,-1243.35,0.00013698,2]
[353352615,1739790651315,-1484.38,0.00013698,2]
[353352616,1739790651328,-500.0,0.00013698,2]
[353352617,1739790651339,-823.07,0.00013698,2]
[353352618,1739790651348,-1624.95,0.00013698,2]
[353352619,1739790651357,-996.61,0.00013698,2]
[353352620,1739790651367,-1967.99,0.00013698,2]
[353352621,1739790651376,-500.0,0.00013698,2]
[353352622,1739790651386,-500.0,0.00013698,2]
[353352623,1739790651396,-500.0,0.00013698,2]
[353352624,1739790651407,-500.0,0.00013698,2]
[353352625,1739790651416,-500.0,0.00013698,2]
[353352626,1739790651425,-500.0,0.00013698,2]
[353352627,1739790651435,-1058.1,0.00013698,2]
[353352628,1739790651444,-500.0,0.00013698,2]
[353352629,1739790651454,-154.690205,0.00013698,2]
[353352630,1739790651464,-500.0,0.00013698,2]
[353352631,1739790651473,-500.0,0.00013698,2]
[353352632,1739790651483,-3855.92,0.00013698,2]
[353352633,1739790651493,-3908.82,0.00013698,2]
[353352634,1739790651502,-1724.81,0.00013698,2]
[353352635,1739790651512,-500.0,0.00013698,2]
[353352636,1739790651521,-500.0,0.00013698,2]
[353352637,1739790651532,-500.0,0.00013698,2]
[353352638,1739790651541,-500.0,0.00013698,2]
[353352639,1739790651551,-1780.86,0.00013698,2]
[353352640,1739790651561,-500.0,0.00013698,2]
[353352641,1739790651571,-1099.26,0.00013698,2]
[353352642,1739790651581,-2353.35,0.00013698,2]
[353352643,1739790651592,-500.0,0.00013698,2]
[353352644,1739790651602,-500.0,0.00013698,2]
[353352645,1739790651612,-1641.87,0.00013698,2]
[353352646,1739790651622,-886.91,0.00013698,2]
[353352647,1739790651632,-500.0,0.00013698,2]
[353352648,1739790651642,-1102.52,0.00013698,2]
[353352649,1739790651652,-1231.73,0.00013698,2]
[353352650,1739790651662,-500.0,0.00013698,2]
[353352651,1739790651672,-344.19897404,0.00013698,2]
[353352652,1739790651682,-500.0,0.00013698,2]
[353352653,1739790651691,-627.5284558,0.00013698,2]
[353352654,1739790651700,-1546.39,0.00013698,2]
[353352655,1739790651709,-2511.42,0.00013698,2]
[353352656,1739790651719,-500.0,0.00013698,2]
[353352657,1739790651728,-2765.79,0.00013698,2]
[353352658,1739790651737,-500.0,0.00013698,2]
[353352659,1739790651747,-1141.56,0.00013698,2]
[353352660,1739790651757,-500.0,0.00013698,2]
[353352661,1739790651767,-3438.25,0.00013698,2]
[353352662,1739790651776,-500.0,0.00013698,2]
[353352663,1739790651786,-500.0,0.00013698,2]
[353352664,1739790651795,-219.884413,0.00013698,2]
[353352665,1739790651805,-500.0,0.00013698,2]
[353352666,1739790651815,-1921.34,0.00013698,2]
[353352667,1739790651824,-500.0,0.00013698,2]
[353352668,1739790651833,-970.12,0.00013698,2]
[353352669,1739790651842,-1611.84,0.00013698,2]
[353352670,1739790651851,-500.0,0.00013698,2]
[353352671,1739790651861,-1693.87,0.00013698,2]
[353352672,1739790651872,-656.63,0.00013698,2]
[353352673,1739790651882,-219.884413,0.00013698,2]
[353352674,1739790651893,-1624.7,0.00013698,2]
[353352675,1739790651903,-151.0,0.00013698,2]
[353352676,1739790651914,-2105.06,0.00013698,2]
[353352677,1739790651923,-1778.91,0.00013698,2]
[353352678,1739790651932,-508.19790272,0.00013698,2]
[353352679,1739790651941,-158.178425,0.00013698,2]
[353352680,1739790651951,-601.63,0.00013698,2]
[353352681,1739790651960,-1245.58,0.00013698,2]
[353352682,1739790651969,-151.0,0.00013698,2]
[353352683,1739790651979,-500.0,0.00013698,2]
[353352684,1739790651988,-2104.06,0.00013698,2]
[353352685,1739790651997,-500.0,0.00013698,2]
[353352686,1739790652006,-3095.64,0.00013698,2]
[353352687,1739790652015,-842.5,0.00013698,2]
[353352688,1739790652025,-645.53,0.00013698,2]
[353352689,1739790652034,-1964.24,0.00013698,2]
[353352690,1739790652043,-2334.42,0.00013698,2]
[353352691,1739790652053,-248.17158364,0.00013698,2]
[353352692,1739790652062,-500.0,0.00013698,2]
[353352693,1739790652073,-500.0,0.00013698,2]
[353352694,1739790652083,-500.0,0.00013698,2]
[353352695,1739790652092,-1712.76,0.00013698,2]
[353352696,1739790652101,-2486.0,0.00013698,2]
[353352697,1739790652110,-500.0,0.00013698,2]
[353352698,1739790652120,-164.358343,0.00013698,2]
[353352699,1739790652129,-2017.71,0.00013698,2]
[353352700,1739790652138,-505.77654096,0.00013698,2]
[353352701,1739790652148,-500.0,0.00013698,2]
[353352702,1739790652158,-500.0,0.00013698,2]
[353352703,1739790652167,-2930.26,0.00013698,2]
[353352704,1739790652177,-1198.98,0.00013698,2]
[353352705,1739790652186,-500.0,0.00013698,2]
[353352706,1739790652196,-1775.02,0.00013698,2]
[353352707,1739790652205,-500.0,0.00013698,2]
[353352708,1739790652214,-500.0,0.00013698,2]
[353352709,1739790652224,-695.06,0.00013698,2]
[353352710,1739790652233,-489.089193,0.00013698,2]
[353352711,1739790652242,-1443.7,0.00013698,2]
[353352712,1739790652252,-500.0,0.00013698,2]
[353352713,1739790652261,-500.0,0.00013698,2]
[353352714,1739790652270,-2040.71,0.00013698,2]
[353352715,1739790652279,-500.0,0.00013698,2]
[353352716,1739790652288,-161.276128,0.00013698,2]
[353352717,1739790652297,-1665.66,0.00013698,2]
[353352718,1739790652306,-500.0,0.00013698,2]
[353352719,1739790652320,-1996.73,0.00013698,2]
[353352720,1739790652329,-500.0,0.00013698,2]
[353352721,1739790652338,-161.276128,0.00013698,2]
[353352722,1739790652347,-3583.41,0.00013698,2]
[353352723,1739790652356,-2581.57,0.00013698,2]
[353352724,1739790652367,-625.95,0.00013698,2]
[353352725,1739790652376,-2458.6,0.00013698,2]
[353352726,1739790652385,-1622.83,0.00013698,2]
[353352727,1739790652394,-568.435861,0.00013698,2]
[353352728,1739790652404,-760.29,0.00013698,2]
[353352729,1739790652414,-500.0,0.00013698,2]
[353352730,1739790652423,-840.84,0.00013698,2]
[353352731,1739790652432,-500.0,0.00013698,2]
[353352732,1739790652441,-1178.58,0.00013698,2]
[353352733,1739790652450,-2366.33,0.00013698,2]
[353352734,1739790652459,-151.0,0.00013698,2]
[353352735,1739790652469,-2403.72,0.00013698,2]
[353352736,1739790652478,-7864.66,0.00013698,2]
[353352737,1739790652487,-500.0,0.00013698,2]
[353352738,1739790652496,-2354.99,0.00013698,2]
[353352739,1739790652505,-748.028152,0.00013698,2]
[353352740,1739790652516,-1848.85,0.00013698,2]
[353352741,1739790652525,-1557.92,0.00013698,2]
[353352742,1739790652535,-500.0,0.00013698,2]
[353352743,1739790652544,-500.0,0.00013698,2]
[353352744,1739790652553,-489.70382653,0.00013698,2]
[353352745,1739790652562,-1001.08,0.00013698,2]
[353352746,1739790652572,-500.0,0.00013698,2]
[353352747,1739790652581,-500.0,0.00013698,2]
[353352748,1739790652591,-709.61,0.00013698,2]
[353352749,1739790652600,-336.0820788,0.00013698,2]
[353352750,1739790652609,-500.0,0.00013698,2]
[353352751,1739790652618,-2462.3,0.00013698,2]
[353352752,1739790652627,-500.0,0.00013698,2]
[353352753,1739790652635,-500.0,0.00013698,2]
[353352754,1739790652644,-500.0,0.00013698,2]
[353352755,1739790652653,-500.0,0.00013698,2]
[353352756,1739790652662,-858.933861,0.00013698,2]
[353352757,1739790652672,-500.0,0.00013698,2]
[353352758,1739790652681,-1996.61,0.00013698,2]
[353352759,1739790652691,-656.4,0.00013698,2]
[353352760,1739790652701,-500.0,0.00013698,2]
[353352761,1739790652710,-504.45,0.00013698,2]
[353352762,1739790652720,-1795.69,0.00013698,2]
[353352763,1739790652730,-500.0,0.00013698,2]
[353352764,1739790652740,-2324.8,0.00013698,2]
[353352765,1739790652749,-5761.18,0.00013698,2]
[353352766,1739790652759,-500.0,0.00013698,2]
[353352767,1739790652769,-500.0,0.00013698,2]
[353352768,1739790652778,-1891.61,0.00013698,2]
[353352769,1739790652787,-500.0,0.00013698,2]
[353352770,1739790652796,-1249.1,0.00013698,2]
[353352771,1739790652806,-500.0,0.00013698,2]
[353352772,1739790652817,-2170.53,0.00013698,2]
[353352773,1739790652827,-1187.79,0.00013698,2]
[353352774,1739790652838,-2289.66,0.00013698,2]
[353352775,1739790652850,-500.0,0.00013698,2]
[353352776,1739790652860,-660.984811,0.00013698,2]
[353352777,1739790652870,-500.0,0.00013698,2]
[353352778,1739790652880,-1270.28,0.00013698,2]
[353352779,1739790652890,-500.0,0.00013698,2]
[353352780,1739790652900,-500.0,0.00013698,2]
[353352781,1739790652910,-1161.68,0.00013698,2]
[353352782,1739790652919,-170.67363625,0.00013698,2]
[353352783,1739790652928,-3032.98,0.00013698,2]
[353352784,1739790652938,-746.84,0.00013698,2]
[353352785,1739790652948,-500.0,0.00013698,2]
[353352786,1739790652958,-331.330825,0.00013698,2]
[353352787,1739790652968,-151.0,0.00013698,2]
[353352788,1739790652978,-515.69,0.00013698,2]
[353352789,1739790652987,-151.0,0.00013698,2]
[353352790,1739790652997,-1682.66,0.00013698,2]
[353352791,1739790653006,-753.072848,0.00013698,2]